bitfinex/quotes_SOLUSD_20240614
["timestamp","ask_amount","ask_price","bid_price","bid_amount"]
[1718403587132,25.8615,143.07,143.02,15.522]
[1718403587504,7.7591,143.06,143.02,2.587]
[1718403587831,7.759,143.06,143.02,2.587]
[1718403588323,18.1032,143.07,143.03,2.5868]
[1718403588623,2.5863,143.06,143.02,2.587]
[1718403588825,7.759,143.06,143.01,29.3062]
[1718403589032,7.759,143.06,143.02,2.587]
[1718403589402,2.5863,143.06,143.02,2.587]
[1718403589625,18.1033,143.07,143.02,23.2831]
[1718403589626,7.7587,143.07,143.02,23.2831]
[1718403589808,15.5171,143.07,143.02,25.87]
[1718403590211,25.8617,143.07,143.02,25.87]
[1718403590527,2.5863,143.06,143.02,15.5219]
[1718403590748,25.8618,143.07,143.02,25.8697]
[1718403590910,2.5863,143.06,143.02,7.7609]
[1718403591316,25.8619,143.07,143.03,2.5868]
[1718403591534,7.7587,143.07,143.03,2.5868]
[1718403591727,7.7587,143.07,143.02,25.87]
[1718403591904,2.5863,143.06,143.02,7.7608]
[1718403592708,25.8616,143.07,143.02,25.8699]
[1718403594012,2.5861,143.07,143.03,7.7602]
[1718403594216,7.7583,143.07,143.03,2.5868]
[1718403594517,2.5863,143.06,143.02,2.5869]
[1718403595035,2.5863,143.06,143.02,7.7609]
[1718403595410,23.2757,143.07,143.02,7.7609]
[1718403595411,25.8619,143.07,143.03,2.5868]
[1718403595610,2.5863,143.06,143.02,7.7609]
[1718403595834,25.8618,143.07,143.03,2.5868]
[1718403596022,25.8618,143.07,143.02,23.2831]
[1718403596023,7.7585,143.07,143.02,23.2831]
[1718403596351,7.7585,143.07,143.02,25.87]
[1718403596352,15.5169,143.07,143.02,25.87]
[1718403596520,7.7585,143.07,143.03,2.5868]
[1718403596715,15.5169,143.07,143.02,25.8699]
[1718403596931,15.5169,143.07,143.03,2.5868]
[1718403597130,15.5169,143.07,143.02,25.8699]
[1718403597642,7.7585,143.07,143.03,2.5868]
[1718403600335,7.97218366,143.12,143.06,2.5863]
[1718403600336,2.5856,143.1,143.06,2.5863]
[1718403600630,7.29218366,143.12,143.03,7.7604]
[1718403600631,2.5861,143.07,143.03,7.7604]
[1718403600809,25.86,143.08,143.03,25.8681]
[1718403601009,7.7583,143.07,143.03,7.7604]
[1718403601414,2.5861,143.07,143.03,15.5209]
[1718403601605,7.7582,143.08,143.04,7.7599]
[1718403601807,2.5861,143.08,143.04,7.7599]
[1718403602236,18.1018,143.08,143.03,25.868]
[1718403602423,7.758,143.08,143.04,2.5866]
[1718403602622,25.8597,143.08,143.03,25.8681]
[1718403602822,15.5168,143.07,143.03,2.5867]
[1718403603440,25.8656,143.05,143.0,30.6729]
[1718403603614,23.279,143.05,143.0,22.9108]
[1718403603811,25.8656,143.05,143.0,28.0858]
[1718403604017,2.5864,143.06,143.01,23.2841]
[1718403604227,15.5171,143.07,143.02,23.2829]
[1718403604429,15.516,143.08,143.04,2.5866]
[1718403604740,12.9289,143.09,143.0,15.1489]
[1718403604914,10.3419,143.11,143.01,20.34]
[1718403605116,2.5855,143.11,143.07,2.5861]
[1718403605410,2.5858,143.09,143.05,7.7591]
[1718403605637,2.5858,143.09,143.05,2.5863]
[1718403606327,2.5858,143.09,143.05,7.7592]
[1718403606642,25.8562,143.1,143.05,25.8646]
[1718403606831,25.8562,143.1,143.06,2.5863]
[1718403606832,7.757,143.1,143.06,2.5863]
[1718403607152,2.5854,143.11,143.07,2.586]
[1718403607318,2.5854,143.11,143.06,18.1033]
[1718403607319,25.8563,143.1,143.05,25.8639]
[1718403607512,25.8563,143.1,143.06,2.5862]
[1718403607713,25.8563,143.1,143.05,25.8639]
[1718403608516,25.8563,143.1,143.05,23.2776]
[1718403608730,2.5858,143.09,143.05,25.8639]
[1718403609018,2.5858,143.09,143.05,7.7592]
[1718403609640,25.8563,143.1,143.05,15.5186]
[1718403609819,23.272,143.09,143.04,15.5194]
[1718403610021,2.586,143.08,143.04,7.7598]
[1718403610329,2.586,143.08,143.0,22.9109]
[1718403610330,2.5867,143.04,143.0,22.9109]
[1718403610628,2.5867,143.04,143.0,20.3234]
[1718403610842,6.57,143.04,143.0,30.6727]
[1718403611055,14.33,143.04,143.0,15.1489]
[1718403611275,9.1567,143.04,143.0,22.911]
[1718403611421,6.57,143.04,143.01,2.5871]
[1718403611624,6.57,143.05,143.03,15.5208]
[1718403611827,2.5861,143.07,143.03,7.7603]
[1718403612061,6.57,143.06,143.03,2.5867]
[1718403612232,6.57,143.06,143.02,25.8691]
[1718403612425,23.2741,143.08,143.02,7.7608]
[1718403612746,6.57,143.06,143.03,15.5207]
[1718403612948,5.1721,143.08,143.03,12.934]
[1718403613128,7.758,143.08,143.04,2.5866]
[1718403613647,12.9282,143.1,143.05,25.8644]
[1718403613855,7.7571,143.1,143.06,2.5862]
[1718403614161,7.29260036,143.14,143.03,0.17]
[1718403614328,7.7558,143.12,143.07,25.8604]
[1718403614533,2.5855,143.11,143.07,7.7581]
[1718403614762,7.7563,143.11,143.07,7.7581]
[1718403614929,2.5856,143.1,143.06,7.7586]
[1718403615259,2.5855,143.11,143.07,7.7582]
[1718403615433,2.5854,143.11,143.07,7.7582]
[1718403615633,23.2674,143.12,143.07,15.5165]
[1718403615852,23.2674,143.12,143.07,7.7582]
[1718403615853,2.5854,143.11,143.07,7.7582]
[1718403616149,15.5124,143.11,143.06,23.2759]
[1718403616352,7.7568,143.1,143.06,2.5861]
[1718403616550,2.5856,143.1,143.06,15.5175]
[1718403616732,7.7565,143.11,143.07,2.5861]
[1718403619255,15.5127,143.11,143.07,2.5861]
[1718403619957,2.5856,143.1,143.06,25.8626]
[1718403620649,2.5854,143.11,143.07,2.586]
[1718403620830,7.7562,143.11,143.07,2.586]
[1718403621033,2.5854,143.11,143.07,15.5164]
[1718403621454,7.2930713,143.16,143.08,0.17]
[1718403621659,5.1701,143.13,143.08,35.5151]
[1718403621874,23.2674,143.12,143.08,20.0]
[1718403622153,25.8527,143.12,143.08,20.0]
[1718403622358,7.7558,143.12,143.08,22.5859]
[1718403622540,2.5853,143.12,143.08,35.5155]
[1718403622735,25.8497,143.14,143.1,2.5855]
[1718403622970,2.585,143.13,143.1,2.5855]
[1718403623151,25.8498,143.14,143.1,2.5855]
[1718403623336,23.2628,143.15,143.1,23.2699]
[1718403623542,2.5849,143.14,143.1,25.8553]
[1718403623954,25.8476,143.15,143.11,2.5853]
[1718403624264,281.5002365,143.17,143.08,20.0]
[1718403624265,7.7531,143.17,143.13,7.755]
[1718403624655,23.2583,143.18,143.13,23.265]
[1718403624969,2.5845,143.16,143.13,2.5849]
[1718403625269,2.5845,143.16,143.13,2.585]
[1718403625440,23.259,143.17,143.13,2.585]
[1718403625635,23.259,143.17,143.12,23.266]
[1718403625636,0.8462978,143.19,143.12,16.6237]
[1718403625839,26.6865978,143.19,143.15,2.5846]
[1718403626043,16.3503978,143.19,143.15,2.5846]
[1718403626250,0.8462978,143.19,143.16,2.5844]
[1718403626466,16.3500978,143.19,143.15,2.5846]
[1718403626642,8.5982978,143.19,143.15,7.7537]
[1718403626842,0.8462978,143.19,143.17,7.7528]
[1718403627050,0.8462978,143.19,143.16,25.8439]
[1718403627261,0.8462978,143.19,143.18,2.5841]
[1718403627456,0.8462978,143.19,143.17,7.7526]
[1718403627869,0.8462978,143.19,143.16,7.7531]
[1718403628045,0.8462978,143.19,143.17,2.5843]
[1718403628244,0.8462978,143.19,143.16,25.8445]
[1718403628564,0.8462978,143.19,143.14,18.094]
[1718403628768,26.6870978,143.19,143.15,2.5846]
[1718403628941,15.5052,143.18,143.14,2.5848]
[1718403629141,7.7527,143.18,143.14,22.5848]
[1718403629337,15.5051,143.18,143.14,2.5848]
[1718403629554,15.5051,143.18,143.11,0.34]
[1718403629555,16.7048978,143.19,143.08,23.075]
[1718403629763,19.89,143.17,143.09,5.1715]
[1718403629964,23.2641,143.14,143.09,23.2717]
[1718403630167,25.849,143.14,143.1,2.5855]
[1718403630350,2.5851,143.13,143.09,25.8573]
[1718403630545,2.5851,143.13,143.09,7.7571]
[1718403630868,15.5105,143.13,143.09,2.5857]
[1718403631064,25.8507,143.13,143.08,42.5015]
[1718403631262,23.2655,143.13,143.08,42.5015]
[1718403631573,2.5852,143.13,143.09,15.5145]
[1718403631863,23.2647,143.14,143.09,23.2718]
[1718403632163,2.5852,143.13,143.08,24.4003]
[1718403632367,25.8508,143.13,143.09,2.5857]
[1718403632763,15.5105,143.13,143.08,39.9161]
[1718403633068,15.5105,143.13,143.09,2.5857]
[1718403633371,2.5852,143.13,143.09,7.7572]
[1718403633865,2.5852,143.13,143.09,2.5857]
[1718403634051,25.8498,143.14,143.1,2.5855]
[1718403634746,25.8498,143.14,143.1,7.7566]
[1718403634747,7.7549,143.14,143.1,7.7566]
[1718403634954,7.7546,143.14,143.1,2.5855]
[1718403635251,265.2542,143.15,143.11,2.5853]
[1718403635580,273.0083,143.15,143.11,2.5853]
[1718403635868,2.5849,143.14,143.1,25.8548]
[1718403636440,2.5849,143.14,143.1,2.5854]
[1718403636441,15.5093,143.14,143.1,2.5854]
[1718403637141,5.171,143.11,143.06,18.1035]
[1718403637357,23.271,143.1,143.05,18.1049]
[1718403637562,7.7573,143.09,143.05,2.5863]
[1718403637962,2.5857,143.1,143.06,7.7588]
[1718403638166,22.0028,143.13,143.07,15.5165]
[1718403638167,23.2679,143.12,143.07,15.5165]
[1718403638366,2.5854,143.11,143.07,7.7582]
[1718403638573,7.7559,143.12,143.07,23.2745]
[1718403638748,2.5854,143.11,143.07,25.8605]
[1718403639079,15.5124,143.11,143.06,23.2761]
[1718403639258,32.3432,143.13,143.08,2.5857]
[1718403639570,32.3432,143.13,143.08,2.5859]
[1718403639571,7.7559,143.12,143.08,2.5859]
[1718403639761,23.2672,143.12,143.07,23.2742]
[1718403639959,25.8547,143.11,143.07,2.5861]
[1718403640146,15.5129,143.11,143.07,2.5861]
[1718403640575,15.5127,143.11,143.07,2.5861]
[1718403640871,7.7565,143.11,143.07,2.5861]
[1718403641478,2.5855,143.11,143.07,15.5167]
[1718403641670,2.5854,143.11,143.07,7.7582]
[1718403641994,25.8534,143.12,143.08,2.5859]
[1718403642277,2.5856,143.1,143.06,25.862]
[1718403642476,25.8545,143.11,143.07,2.5861]
[1718403642770,2.5857,143.1,143.06,2.5863]
[1718403642975,7.7569,143.1,143.06,2.5863]
[1718403643550,5.1716,143.09,143.04,29.5755]
[1718403643753,7.7573,143.09,143.05,7.7593]
[1718403644053,25.8581,143.09,143.05,2.5864]
[1718403644367,25.8581,143.09,143.04,42.5084]
[1718403644569,23.2722,143.09,143.05,2.5865]
[1718403644773,25.8581,143.09,143.05,2.5865]
[1718403645170,25.8567,143.1,143.06,2.5863]
[1718403645655,25.8567,143.1,143.05,25.8647]
[1718403645853,2.5858,143.09,143.05,7.7592]
[1718403646068,7.7573,143.09,143.05,7.7592]
[1718403646279,15.5146,143.09,143.05,2.5863]
[1718403646577,25.8577,143.09,143.05,2.5863]
[1718403646871,25.8618,143.07,143.02,23.2825]
[1718403647057,7.7587,143.07,143.03,7.7604]
[1718403647262,20.6887,143.08,143.03,5.1735]
[1718403647474,25.8609,143.08,143.04,2.5866]
[1718403647663,2.5861,143.07,143.03,25.8677]
[1718403647865,25.861,143.08,143.04,2.5866]
[1718403648068,25.861,143.08,143.03,25.8677]
[1718403648272,2.5861,143.07,143.03,23.281]
[1718403648477,2.5861,143.07,143.03,7.7602]
[1718403648677,7.7584,143.07,143.03,2.5867]
[1718403649383,119.89,143.09,143.0,16.6428]
[1718403649568,15.1171,143.07,142.98,6.4113]
[1718403649761,10.3474,143.03,142.97,10.3514]
[1718403650087,23.2852,143.01,142.96,22.8538]
[1718403650266,2.5873,143.01,142.97,2.5879]
[1718403650584,2.5871,143.02,142.97,23.2913]
[1718403650764,2.5871,143.02,142.98,7.7631]
[1718403651182,2.5871,143.02,142.97,18.1155]
[1718403651183,23.2839,143.02,142.97,7.7635]
[1718403651384,7.7614,143.02,142.98,2.5877]
[1718403652467,7.7614,143.02,142.97,25.8788]
[1718403652677,15.5226,143.02,142.97,25.8788]
[1718403652893,25.8708,143.02,142.98,2.5877]
[1718403653079,2.5871,143.02,142.98,2.5877]
[1718403653263,27.2092365,143.06,142.97,0.17]
[1718403653580,25.8654,143.05,143.0,15.524]
[1718403653774,7.76,143.04,143.0,2.5873]
[1718403653991,2.5869,143.03,142.99,2.5874]
[1718403654297,2.5869,143.03,142.99,7.7625]
[1718403654593,2.5871,143.02,142.98,7.7629]
[1718403654797,25.8687,143.03,142.98,25.8771]
[1718403654972,25.8686,143.03,142.99,2.5875]
[1718403655296,7.7606,143.03,142.99,2.5875]
[1718403655466,6.0211,143.08,143.0,25.8733]
[1718403655467,7.7597,143.05,143.0,25.8733]
[1718403655664,0.17,143.07,142.99,2.5875]
[1718403655871,2.5871,143.02,142.98,7.763]
[1718403656096,23.2824,143.03,142.98,7.763]
[1718403656292,25.8693,143.03,142.99,2.5875]
[1718403656476,2.587,143.02,142.98,18.1139]
[1718403656672,5.1741,143.02,142.97,43.2905]
[1718403656896,7.7612,143.02,142.98,2.5877]
[1718403657197,0.34,143.07,142.97,20.0]
[1718403657399,5.1728,143.06,143.0,5.1746]
[1718403657691,2.5868,143.03,142.99,2.5874]
[1718403657889,2.5868,143.03,142.98,18.1135]
[1718403657890,7.7608,143.03,142.98,5.1753]
[1718403658077,12.933,143.05,143.0,2.5874]
[1718403658272,25.8657,143.05,143.0,15.5243]
[1718403658476,25.8638,143.06,143.01,7.7614]
[1718403658791,2.5867,143.04,143.0,7.762]
[1718403658981,7.7598,143.05,143.0,23.2864]
[1718403659304,2.5865,143.05,143.01,7.7613]
[1718403659893,2.5867,143.04,143.0,7.7618]
[1718403660073,7.7601,143.04,142.99,23.2873]
[1718403660272,7.7601,143.04,143.0,2.5873]
[1718403660475,7.76,143.04,143.0,2.5873]
[1718403660686,2.5868,143.04,143.0,2.5873]
[1718403661413,23.2795,143.05,143.0,7.762]
[1718403661700,106.0211,143.08,142.97,23.4606]
[1718403661701,2.5871,143.02,142.97,23.4606]
[1718403661914,2.5869,143.03,142.99,2.5875]
[1718403662385,6.0211,143.08,143.02,7.7608]
[1718403662586,6.0211,143.08,142.99,0.17]
[1718403662898,6.0211,143.08,143.03,23.2814]
[1718403662899,2.586,143.08,143.03,23.2814]
[1718403663072,7.7584,143.07,143.03,2.5867]
[1718403663498,15.5168,143.07,143.02,25.8694]
[1718403663706,2.5863,143.06,143.02,7.7607]
[1718403664519,7.29182474,143.1,143.02,15.0898]
[1718403664805,15.5158,143.08,143.03,25.8678]
[1718403665002,2.5861,143.07,143.03,7.7602]
[1718403665304,2.5861,143.07,143.03,2.5867]
[1718403665870,25.8598,143.08,143.03,15.5209]
[1718403666076,15.5159,143.08,143.03,25.8683]
[1718403666513,2.5863,143.06,143.02,17.6767]
[1718403666811,2.5862,143.07,143.02,38.3727]
[1718403666976,15.5169,143.07,143.02,38.3727]
[1718403667183,15.5169,143.07,143.02,40.9596]
[1718403667400,2.5863,143.06,143.02,22.8505]
[1718403667610,2.5863,143.06,143.02,17.6767]
[1718403667804,2.5863,143.06,143.02,22.8507]
[1718403668306,12.9316,143.06,143.01,25.8709]
[1718403668606,23.2743,143.08,143.03,7.7602]
[1718403668819,18.1023,143.08,143.04,2.5866]
[1718403668978,7.758,143.08,143.04,2.5866]
[1718403669186,2.5856,143.1,143.06,2.5862]
[1718403669575,17.7025,143.11,143.07,2.586]
[1718403669780,7.7562,143.11,143.07,2.586]
[1718403669990,2.5853,143.12,143.08,2.5858]
[1718403670191,7.7558,143.12,143.08,2.5858]
[1718403670395,7.7558,143.12,143.08,7.7577]
[1718403670396,2.5853,143.12,143.08,7.7577]
[1718403670703,2.5854,143.11,143.07,15.5162]
[1718403670873,7.7568,143.1,143.06,2.5861]
[1718403671085,12.929,143.09,143.04,31.0141]
[1718403671274,2.5857,143.1,143.06,7.7589]
[1718403671585,23.2687,143.11,143.06,15.5177]
[1718403671781,25.8547,143.11,143.07,2.5861]
[1718403671990,2.5856,143.1,143.06,7.7587]
[1718403672202,2.5855,143.11,143.07,2.5861]
[1718403672404,7.7563,143.11,143.07,2.5861]
[1718403672778,5.1706,143.12,143.07,5.1721]
[1718403673112,15.5127,143.11,143.06,25.862]
[1718403673399,7.7564,143.11,143.07,2.5861]
[1718403673776,2.5855,143.11,143.07,2.5861]
[1718403673982,2.5855,143.11,143.07,7.7583]
[1718403674187,2.5854,143.11,143.07,7.7582]
[1718403674696,7.7562,143.11,143.07,2.586]
[1718403675202,2.5854,143.11,143.07,7.7582]
[1718403675976,2.5856,143.1,143.06,25.8618]
[1718403676198,2.5858,143.09,143.05,7.7592]
[1718403676402,2.5858,143.09,143.05,15.5186]
[1718403676706,2.5858,143.09,143.05,25.8644]
[1718403676902,2.5857,143.1,143.06,7.7588]
[1718403677103,2.5854,143.11,143.07,15.5165]
[1718403677307,23.2679,143.12,143.07,25.8609]
[1718403677598,25.8532,143.12,143.08,2.5859]
[1718403677910,2.5854,143.11,143.07,7.7581]
[1718403678979,2.5856,143.1,143.06,25.862]
[1718403679191,2.5857,143.09,143.05,7.7591]
[1718403679400,2.5857,143.09,143.05,15.5186]
[1718403679786,25.8563,143.1,143.05,15.5186]
[1718403680004,2.5857,143.09,143.05,7.7591]
[1718403680301,19.89,143.13,143.07,7.7582]
[1718403680302,7.7563,143.11,143.07,7.7582]
[1718403680507,2.5858,143.09,143.05,7.7593]
[1718403680701,7.757,143.1,143.06,7.7589]
[1718403680901,15.5138,143.1,143.06,2.5863]
[1718403681105,2.5857,143.09,143.05,25.8638]
[1718403681479,7.757,143.1,143.06,2.5863]
[1718403681916,15.5138,143.1,143.06,2.5863]
[1718403682215,25.8562,143.1,143.06,2.5863]
[1718403682903,6.57,143.09,143.06,2.5863]
[1718403683107,18.1026,143.08,143.02,5.1739]
[1718403683280,9.1563,143.06,143.02,25.8693]
[1718403683485,6.57,143.06,143.03,2.5868]
[1718403683686,6.57,143.06,143.03,7.7605]
[1718403683886,5.1717,143.09,143.04,5.1733]
[1718403684083,6.57,143.07,143.04,23.2798]
[1718403684313,6.57,143.07,143.04,2.5865]
[1718403684533,6.57,143.07,143.05,2.5864]
[1718403684695,6.57,143.08,143.05,7.7594]
[1718403685012,5.1715,143.09,143.04,5.1731]
[1718403685222,6.57,143.07,143.05,2.5864]
[1718403685599,6.57,143.07,143.04,7.7596]
[1718403685855,6.57,143.07,143.05,2.5864]
[1718403686013,6.57,143.08,143.05,2.5864]
[1718403686838,9.1559,143.08,143.04,2.5865]
[1718403687053,22.0859,143.08,143.03,25.8678]
[1718403687238,2.5861,143.07,143.03,25.8678]
[1718403687612,9.1561,143.07,143.03,25.8678]
[1718403687807,2.5864,143.06,143.02,2.5869]
[1718403688037,9.1564,143.06,143.02,2.5869]
[1718403688344,6.57,143.06,143.01,15.4944]
[1718403688511,6.3351,143.11,142.99,2.5875]
[1718403688512,6.57,143.02,142.99,2.5875]
[1718403688711,6.57,143.02,142.98,23.2891]
[1718403688914,7.7607,143.03,142.98,23.2891]
[1718403689124,15.5213,143.03,142.99,2.5875]
[1718403689322,23.282,143.03,142.98,23.2891]
[1718403689508,7.7607,143.03,142.98,23.2891]
[1718403689712,15.5213,143.03,142.99,2.5875]
[1718403689942,15.5213,143.03,142.98,25.8767]
[1718403690117,15.5213,143.03,142.98,23.2891]
[1718403690318,7.7607,143.03,142.99,2.5875]
[1718403690517,23.2814,143.04,142.99,7.7626]
[1718403690716,23.2792,143.05,143.0,25.8736]
[1718403691038,25.8658,143.05,143.0,25.8736]
[1718403691224,7.76,143.04,143.0,2.5872]
[1718403691609,2.5867,143.04,143.0,25.8733]
[1718403691812,25.8654,143.05,143.0,25.8733]
[1718403692010,2.5866,143.04,143.0,25.8733]
[1718403692435,2.5866,143.04,143.0,7.762]
[1718403692619,25.8654,143.05,143.0,15.5242]
[1718403692822,7.76,143.04,143.0,2.5873]
[1718403693034,2.5872,143.02,142.97,33.6093]
[1718403693216,2.5875,143.0,142.95,15.5292]
[1718403693432,7.7624,143.0,142.96,2.588]
[1718403693633,2.5874,143.0,142.96,2.588]
[1718403693854,16.4771,143.02,142.93,15.1518]
[1718403694028,23.2909,142.98,142.93,17.7404]
[1718403694224,7.7636,142.98,142.94,2.5884]
[1718403694429,2.5878,142.98,142.94,7.7653]
[1718403694659,7.7633,142.98,142.93,38.4493]
[1718403694952,7.7633,142.98,142.94,2.5884]
[1718403695650,25.8769,142.99,142.94,15.5307]
[1718403695822,25.8769,142.99,142.95,2.5883]
[1718403696240,2.5877,142.98,142.94,7.7652]
[1718403696754,2.5877,142.98,142.94,2.5883]
[1718403697068,2.5881,142.96,142.92,25.8875]
[1718403697227,2.5881,142.96,142.92,15.5327]
[1718403697425,2.5884,142.95,142.91,2.5888]
[1718403697628,23.2938,142.96,142.91,35.5337]
[1718403697861,2.5883,142.95,142.91,7.7668]
[1718403698150,2.5885,142.94,142.9,7.7673]
[1718403698332,23.2951,142.95,142.9,7.7673]
[1718403698539,2.5885,142.94,142.9,15.5348]
[1718403698734,119.73,142.99,142.86,16.414]
[1718403698735,2.5889,142.92,142.86,16.414]
[1718403699058,2.5885,142.94,142.9,2.5891]
[1718403699264,2.5887,142.93,142.88,10.3582]
[1718403699432,25.8871,142.93,142.88,25.895]
[1718403700054,23.2984,142.93,142.89,2.5893]
[1718403700223,2.5888,142.93,142.89,7.768]
[1718403700543,2.5889,142.92,142.88,7.7684]
[1718403700744,25.8887,142.92,142.87,25.8965]
[1718403700948,15.5333,142.92,142.87,25.8965]
[1718403701365,7.7667,142.92,142.88,2.5895]
[1718403701549,2.589,142.91,142.87,25.8965]
[1718403701739,25.8887,142.92,142.88,2.5895]
[1718403701939,7.7667,142.92,142.88,2.5895]
[1718403702137,10.3555,142.92,142.87,2.5896]
[1718403702449,0.17,142.94,142.89,7.768]
[1718403702450,2.5887,142.93,142.89,7.768]
[1718403702642,2.5881,142.96,142.92,5.1775]
[1718403702857,2.5881,142.96,142.92,7.7663]
[1718403703159,7.7656,142.94,142.9,2.5891]
[1718403703737,15.5311,142.94,142.89,25.893]
[1718403703946,25.8853,142.94,142.89,25.893]
[1718403704151,7.766,142.93,142.89,2.5892]
[1718403704343,2.5886,142.93,142.89,15.536]
[1718403704586,2.5887,142.93,142.89,15.536]
[1718403704737,25.8853,142.94,142.9,2.5892]
[1718403705149,7.766,142.93,142.89,2.5893]
[1718403705447,2.5888,142.92,142.88,25.8945]
[1718403705646,7.7665,142.92,142.88,2.5894]
[1718403705853,2.5888,142.92,142.88,15.5372]
[1718403706055,2.5888,142.92,142.88,7.7685]
[1718403706434,25.8872,142.93,142.89,2.5893]
[1718403706674,7.7662,142.93,142.89,2.5893]
[1718403706842,2.5891,142.91,142.87,2.5896]
[1718403707145,7.7668,142.92,142.88,2.5895]
[1718403707346,2.589,142.92,142.88,7.7686]
[1718403707847,2.589,142.91,142.87,25.8971]
[1718403708358,25.8888,142.92,142.88,2.5895]
[1718403708558,25.8888,142.92,142.87,23.3075]
[1718403708764,25.8888,142.92,142.88,2.5895]
[1718403709061,2.5886,142.93,142.89,20.7143]
[1718403709257,25.8852,142.94,142.9,2.5892]
[1718403709943,25.8852,142.94,142.89,25.8929]
[1718403709944,2.5886,142.93,142.89,25.8929]
[1718403710444,25.8852,142.94,142.9,2.5892]
[1718403711170,7.7668,142.92,142.88,7.7686]
[1718403711343,7.7668,142.92,142.88,2.5895]
[1718403711542,15.5333,142.92,142.88,2.5895]
[1718403711944,7.7668,142.92,142.88,7.7686]
[1718403712136,18.2912,142.93,142.89,2.5893]
[1718403712137,26.0575,142.93,142.89,2.5893]
[1718403712450,2.589,142.91,142.87,25.8965]
[1718403712750,2.589,142.91,142.87,15.5382]
[1718403713245,26.0575,142.93,142.89,2.5893]
[1718403713647,26.0575,142.93,142.88,23.306]
[1718403713648,2.5888,142.92,142.88,25.8954]
[1718403713849,2.5888,142.92,142.88,7.7685]
[1718403714153,2.589,142.91,142.87,7.7689]
[1718403714350,25.889,142.92,142.88,2.5895]
[1718403714752,2.589,142.91,142.87,25.897]
[1718403714951,25.889,142.92,142.88,2.5895]
[1718403716576,2.589,142.92,142.88,25.8956]
[1718403716752,2.5887,142.93,142.89,25.8934]
[1718403717164,7.7657,142.94,142.9,7.7674]
[1718403717568,25.8852,142.94,142.9,2.5891]
[1718403717775,2.5886,142.93,142.89,25.8932]
[1718403717970,25.8853,142.94,142.9,2.5892]
[1718403718286,2.5887,142.93,142.89,25.8932]
[1718403718485,7.29395121,142.97,142.86,16.414]
[1718403718662,15.5311,142.94,142.9,2.5891]
[1718403718857,2.5886,142.93,142.89,25.8928]
[1718403719958,2.5886,142.93,142.86,16.414]
[1718403719959,35.6937,142.98,142.87,0.17]
[1718403720169,6.4835,143.0,142.92,15.4692]
[1718403720353,25.875,143.0,142.96,2.5881]
[1718403720558,2.5875,143.0,142.96,15.5286]
[1718403720870,23.2866,143.0,142.96,2.5881]
[1718403721079,7.7627,142.99,142.95,7.7644]
[1718403721978,15.5255,142.99,142.95,7.7644]
[1718403722276,41.0085,143.03,142.93,0.17]
[1718403722478,5.1735,143.04,143.0,2.5873]
[1718403722647,2.5867,143.04,143.0,23.2862]
[1718403722851,19.73,143.09,142.93,41.69]
[1718403723073,2.5863,143.06,143.02,5.1739]
[1718403723279,5.1725,143.07,143.03,2.5868]
[1718403723460,23.2757,143.07,143.03,2.5868]
[1718403723781,23.2757,143.07,143.02,23.2829]
[1718403724071,7.7591,143.06,143.02,2.587]
[1718403724258,12.9326,143.05,143.0,23.286]